bitfinex/quotes_BTCUSD_20230109
["timestamp","ask_amount","ask_price","bid_price","bid_amount"]
[1673272461698,0.17323453,17225.0,17223.0,1.845265]
[1673272461952,0.17323453,17225.0,17224.0,0.275009]
[1673272462213,0.17323453,17225.0,17223.0,1.561206]
[1673272462478,0.17323453,17225.0,17223.0,0.980593]
[1673272462748,0.17323453,17225.0,17224.0,0.580585]
[1673272463533,0.17323453,17225.0,17223.0,0.980601]
[1673272463798,0.17323453,17225.0,17224.0,0.004]
[1673272464303,0.17323453,17225.0,17224.0,0.584585]
[1673272464585,0.17323453,17225.0,17224.0,0.580585]
[1673272465039,0.17323453,17225.0,17224.0,0.481785]
[1673272465289,0.17323453,17225.0,17224.0,0.485785]
[1673272466544,0.17323453,17225.0,17224.0,1.06637]
[1673272467786,0.34481476,17225.0,17224.0,1.06637]
[1673272468033,0.34481476,17225.0,17224.0,0.485785]
[1673272468534,0.77636876,17225.0,17224.0,0.485785]
[1673272468782,0.77636876,17225.0,17224.0,0.004]
[1673272469037,1.18189336,17225.0,17224.0,0.004]
[1673272469786,0.77636876,17225.0,17224.0,0.004]
[1673272470037,0.60464838,17225.0,17224.0,0.004]
[1673272470559,0.77636876,17225.0,17224.0,0.004]
[1673272471054,1.18071792,17225.0,17224.0,0.004]
[1673272471555,1.58071792,17225.0,17224.0,0.004]
[1673272472310,1.23590316,17225.0,17224.0,0.004]
[1673272472559,1.23590316,17225.0,17224.0,0.0039017]
[1673272473056,1.59873916,17225.0,17224.0,0.0039017]
[1673272473338,1.16718516,17225.0,17224.0,0.0039017]
[1673272473580,1.86935903,17225.0,17224.0,0.0039017]
[1673272473846,2.38720513,17225.0,17224.0,0.00030252]
[1673272474083,3.54830713,17225.0,17224.0,0.00030252]
[1673272474830,3.95368997,17225.0,17224.0,0.00030252]
[1673272475335,3.54830713,17225.0,17224.0,0.00030252]
[1673272479687,3.03046103,17225.0,17224.0,0.00030252]
[1673272481233,3.54830713,17225.0,17224.0,0.00030252]
[1673272481980,3.03046103,17225.0,17224.0,0.00030252]
[1673272484799,3.46351216,17225.0,17224.0,0.00030252]
[1673272485009,3.03046103,17225.0,17224.0,0.00030252]
[1673272485500,3.54830713,17225.0,17224.0,0.00030252]
[1673272487974,3.71650713,17225.0,17224.0,0.00030252]
[1673272488945,3.19866103,17225.0,17224.0,0.00030252]
[1673272490476,2.61811003,17225.0,17224.0,0.00030252]
[1673272490726,3.05119372,17225.0,17224.0,0.00030252]
[1673272490977,2.47064272,17225.0,17224.0,0.00030252]
[1673272491226,2.81712172,17225.0,17224.0,0.00030252]
[1673272491965,1.75211185,17225.0,17224.0,0.00030252]
[1673272492470,2.11494785,17225.0,17224.0,0.00030252]
[1673272492723,1.71059869,17225.0,17224.0,0.00030252]
[1673272492981,1.75262355,17225.0,17224.0,0.00030252]
[1673272493228,1.76897542,17225.0,17224.0,0.00030252]
[1673272493716,1.60077542,17225.0,17224.0,0.00030252]
[1673272494456,1.60079727,17225.0,17224.0,0.00030252]
[1673272495196,1.16769173,17225.0,17224.0,0.00030252]
[1673272495699,1.6007998,17225.0,17224.0,0.00030252]
[1673272496681,1.2379638,17225.0,17224.0,0.00030252]
[1673272496930,1.2379638,17225.0,17224.0,0.00019593]
[1673272497695,1.584479,17225.0,17224.0,0.00019593]
[1673272499470,1.2379638,17225.0,17224.0,0.00019593]
[1673272500476,1.6007998,17225.0,17224.0,0.00019593]
[1673272501476,1.2379638,17225.0,17224.0,0.00019593]
[1673272501719,1.58449688,17225.0,17224.0,0.00019593]
[1673272502465,1.94733288,17225.0,17224.0,0.00019593]
[1673272502709,1.6007998,17225.0,17224.0,0.00019593]
[1673272503486,1.16769173,17225.0,17224.0,0.00019593]
[1673272504318,1.60089617,17225.0,17224.0,0.00019593]
[1673272504846,1.23806017,17225.0,17224.0,0.00019593]
[1673272505109,1.78879684,17225.0,17224.0,0.00019593]
[1673272505633,2.88719394,17225.0,17224.0,0.00019593]
[1673272505884,2.30664294,17225.0,17224.0,0.00019593]
[1673272506403,1.78879684,17225.0,17224.0,0.00019593]
[1673272507648,2.88719394,17225.0,17224.0,0.00019593]
[1673272509969,0.4,17224.0,17222.0,1.15646393]
[1673272510231,0.43346939,17223.0,17222.0,1.15646393]
[1673272511291,0.60685714,17223.0,17222.0,1.15646393]
[1673272511538,0.60685714,17223.0,17222.0,1.20046393]
[1673272512077,0.60685714,17223.0,17222.0,1.15646393]
[1673272512634,0.61085714,17223.0,17222.0,1.16046393]
[1673272512881,0.43748089,17223.0,17222.0,1.16046393]
[1673272513921,0.43348089,17223.0,17222.0,1.15146393]
[1673272514160,0.7842564,17223.0,17222.0,1.15546393]
[1673272514664,0.43748089,17223.0,17222.0,1.15546393]
[1673272515656,0.17739926,17223.0,17222.0,1.99910893]
[1673272516143,0.17739926,17223.0,17222.0,2.57976093]
[1673272516874,0.17339926,17223.0,17222.0,2.57576093]
[1673272517370,0.004,17223.0,17222.0,3.00127047]
[1673272517631,0.004,17223.0,17222.0,4.05998251]
[1673272517895,0.004,17223.0,17222.0,4.70117482]
[1673272518150,0.4343561,17226.0,17222.0,4.69717482]
[1673272518151,0.17427447,17226.0,17222.0,4.69717482]
[1673272518396,0.17427447,17226.0,17225.0,0.1687]
[1673272518669,0.17427447,17226.0,17225.0,2.42130454]
[1673272518916,0.17427447,17226.0,17225.0,1.999795]
[1673272519413,0.00087521,17226.0,17225.0,2.1805499]
[1673272519656,0.00087521,17226.0,17225.0,2.42130454]
[1673272520427,0.00087521,17226.0,17225.0,2.75860454]
[1673272520725,0.00487521,17226.0,17225.0,2.76760454]
[1673272520949,0.00487521,17226.0,17225.0,3.34815554]
[1673272521488,0.00087521,17226.0,17225.0,3.81320214]
[1673272521705,0.00087521,17226.0,17225.0,3.63915554]
[1673272521955,0.00078833,17226.0,17225.0,3.81374087]
[1673272522470,0.00078833,17226.0,17225.0,3.33969427]
[1673272523496,0.00078833,17226.0,17225.0,3.63969427]
[1673272524015,0.00078833,17226.0,17225.0,3.86244917]
[1673272524261,0.00078833,17226.0,17225.0,3.85574087]
[1673272524534,0.00078833,17226.0,17225.0,5.46321823]
[1673272525024,0.00078833,17226.0,17225.0,5.00684987]
[1673272525531,0.00078833,17226.0,17225.0,4.57196427]
[1673272525794,0.00078833,17226.0,17225.0,3.68169427]
[1673272526049,0.00078833,17226.0,17225.0,3.51299427]
[1673272526295,0.00078833,17226.0,17225.0,3.47099427]
[1673272526804,0.00078833,17226.0,17225.0,3.60999427]
[1673272527059,0.00078833,17226.0,17225.0,3.60499427]
[1673272527291,0.00078833,17226.0,17225.0,3.30499427]
[1673272529602,0.00078833,17226.0,17225.0,3.60499427]
[1673272531116,0.00078833,17226.0,17225.0,3.59999427]
[1673272534504,0.00078833,17226.0,17225.0,4.36264194]
[1673272534750,0.00078833,17226.0,17225.0,4.96264194]
[1673272534998,0.00078833,17226.0,17225.0,4.36264194]
[1673272535486,0.25078833,17226.0,17225.0,4.36264194]
[1673272537509,0.25078833,17226.0,17225.0,4.06264194]
[1673272538011,0.25078833,17226.0,17225.0,3.29999427]
[1673272538270,0.25078833,17226.0,17225.0,2.87848473]
[1673272538531,0.25078833,17226.0,17225.0,3.29999427]
[1673272538777,0.25078833,17226.0,17225.0,2.87848473]
[1673272539288,0.25078833,17226.0,17225.0,3.29999427]
[1673272539534,0.24578833,17226.0,17225.0,3.29999427]
[1673272541623,0.26416271,17227.0,17225.0,3.29999427]
[1673272541885,0.24578833,17226.0,17225.0,2.70270127]
[1673272542133,0.24578833,17226.0,17225.0,2.89317773]
[1673272542876,0.24578833,17226.0,17225.0,3.31468727]
[1673272543381,0.24578833,17226.0,17225.0,3.61468727]
[1673272544156,0.26416271,17227.0,17225.0,3.61468727]
[1673272544415,0.26416271,17227.0,17226.0,1.45730954]
[1673272544667,0.26416271,17227.0,17226.0,3.64152954]
[1673272545693,0.26416271,17227.0,17226.0,3.78052954]
[1673272547258,0.24578833,17228.0,17226.0,5.07078954]
[1673272547525,0.24578833,17228.0,17227.0,1.23375657]
[1673272547760,0.24578833,17228.0,17227.0,1.80870657]
[1673272548020,0.24578833,17228.0,17227.0,3.55015857]
[1673272548551,0.00253854,17229.0,17227.0,3.55015857]
[1673272548809,0.00253854,17229.0,17228.0,1.2263828]
[1673272549060,0.00253854,17229.0,17228.0,3.2426628]
[1673272550368,0.00253854,17229.0,17228.0,3.3816628]
[1673272550623,0.00253854,17229.0,17228.0,2.95968]
[1673272550885,0.00253854,17229.0,17228.0,3.1831093]
[1673272552675,0.00253854,17229.0,17228.0,3.3571559]
[1673272553571,0.00253854,17229.0,17228.0,4.3571559]
[1673272554232,0.00253854,17229.0,17228.0,5.09273395]
[1673272554486,0.00253854,17229.0,17228.0,7.77883652]
[1673272554756,0.00253854,17229.0,17228.0,6.76022035]
[1673272555538,0.00253854,17229.0,17228.0,6.93411139]
[1673272555794,5.4e-07,17229.0,17228.0,7.45733111]
[1673272556047,0.00253854,17230.0,17228.0,7.45733111]
[1673272556305,0.00253854,17230.0,17229.0,3.86930285]
[1673272556573,0.00253854,17230.0,17229.0,4.79127052]
[1673272556830,0.00253854,17230.0,17229.0,6.41941855]
[1673272557088,0.00253854,17230.0,17229.0,6.07236025]
[1673272557352,0.00253854,17230.0,17229.0,6.2458893]
[1673272557842,0.00253854,17230.0,17229.0,6.3848893]
[1673272558090,0.00253854,17230.0,17229.0,6.4971893]
[1673272558605,0.00253854,17230.0,17229.0,6.23689558]
[1673272558856,0.00253854,17230.0,17229.0,6.49717511]
[1673272559107,0.00253854,17230.0,17229.0,7.49717511]
[1673272560134,0.00253854,17230.0,17229.0,7.67162562]
[1673272560383,0.00253854,17230.0,17229.0,7.49716904]
[1673272561413,0.00253854,17230.0,17229.0,7.93189908]
[1673272561436,0.00253854,17230.0,17229.0,5.77162562]
[1673272561667,0.00253854,17230.0,17229.0,5.54772562]
[1673272561889,0.00253854,17230.0,17229.0,5.43542562]
[1673272562137,0.00253854,17230.0,17229.0,4.35242308]
[1673272562373,0.00253854,17230.0,17229.0,3.74352308]
[1673272562620,0.00253854,17230.0,17229.0,3.44957541]
[1673272562872,0.00253854,17230.0,17229.0,3.56187541]
[1673272563603,0.00253854,17230.0,17229.0,3.55987541]
[1673272564822,0.00253854,17230.0,17229.0,3.82016269]
[1673272565819,0.00253854,17230.0,17229.0,4.42016269]
[1673272566355,0.00253854,17230.0,17229.0,4.15987541]
[1673272566864,0.00253854,17230.0,17229.0,3.55987541]
[1673272567109,0.00253854,17230.0,17229.0,3.38635056]
[1673272569818,0.00253854,17230.0,17229.0,3.08635056]
[1673272570307,0.00253854,17230.0,17229.0,3.38635056]
[1673272571088,0.00253854,17230.0,17229.0,3.55987541]
[1673272571589,0.00253854,17230.0,17229.0,4.15987541]
[1673272572570,0.00253854,17230.0,17229.0,4.42016269]
[1673272573324,0.00253854,17230.0,17229.0,4.89521628]
[1673272573567,0.00253854,17230.0,17229.0,4.42016269]
[1673272573835,0.00253854,17230.0,17229.0,4.15987541]
[1673272574066,0.00253854,17230.0,17229.0,4.42016269]
[1673272574305,0.00253854,17230.0,17229.0,3.55987541]
[1673272574568,0.00253854,17230.0,17229.0,3.38635056]
[1673272574814,0.00253854,17230.0,17229.0,2.665458]
[1673272575053,0.00253854,17230.0,17229.0,2.561658]
[1673272576004,0.00253854,17230.0,17229.0,2.9836408]
[1673272577240,0.00253854,17230.0,17229.0,3.8836408]
[1673272577500,0.00253854,17230.0,17229.0,3.9959408]
[1673272577760,0.00253854,17230.0,17229.0,5.16946565]
[1673272578003,0.00253854,17230.0,17229.0,6.08916714]
[1673272578265,0.00316354,17231.0,17230.0,0.20002409]
[1673272578503,0.00316354,17231.0,17230.0,3.46909976]
[1673272578748,0.00316354,17231.0,17230.0,4.00427604]
[1673272578989,0.00316354,17231.0,17230.0,3.74398876]
[1673272579259,0.00316354,17231.0,17230.0,4.00427604]
[1673272579501,0.00316354,17231.0,17230.0,4.49008005]
[1673272579750,0.00316354,17231.0,17230.0,4.66359448]
[1673272580223,0.00316354,17231.0,17230.0,4.97703724]
[1673272580465,0.00316354,17231.0,17230.0,5.86115491]
[1673272580944,0.00316354,17231.0,17230.0,6.12299661]
[1673272581178,0.00316354,17231.0,17230.0,6.993878]
[1673272581651,0.00316354,17231.0,17230.0,6.55914796]
[1673272581885,0.00316354,17231.0,17230.0,6.99325193]
[1673272582122,0.00316354,17231.0,17230.0,6.12237054]
[1673272582608,0.00316354,17231.0,17230.0,7.99326819]
[1673272583619,5.4e-07,17231.0,17230.0,8.79535273]
[1673272583864,0.00362144,17233.0,17231.0,1.0089]
[1673272584186,0.00362144,17233.0,17231.0,6.57765856]
[1673272584348,0.00362144,17233.0,17231.0,6.41824813]
[1673272585077,0.00362144,17233.0,17231.0,6.47615516]
[1673272585563,0.00362144,17233.0,17232.0,1.0089]
[1673272585819,0.00362144,17233.0,17232.0,6.80717246]
[1673272586094,0.00362144,17233.0,17232.0,7.08202146]
[1673272586339,4.4e-07,17233.0,17232.0,7.51615145]
[1673272586576,0.24964041,17235.0,17232.0,8.441019]
[1673272586815,0.24964041,17235.0,17234.0,1.44543797]
[1673272587089,0.24964041,17235.0,17234.0,5.56135745]
[1673272587333,0.24964041,17235.0,17234.0,4.70278266]
[1673272587824,0.00385208,17235.0,17234.0,4.70278266]
[1673272588061,0.00385208,17235.0,17234.0,4.84178266]
[1673272588529,0.24964041,17235.0,17234.0,4.66813547]
[1673272588774,0.24964041,17235.0,17234.0,4.36813547]
[1673272589550,0.24964041,17235.0,17234.0,4.66813547]
[1673272590273,0.24964041,17235.0,17234.0,3.1652878]
[1673272590526,0.24964041,17235.0,17234.0,2.743305]
[1673272593239,0.24957381,17235.0,17234.0,2.743305]
[1673272593517,0.24957381,17235.0,17234.0,3.1652878]
[1673272595330,0.24957381,17235.0,17234.0,2.743305]
[1673272596160,0.24957381,17235.0,17234.0,2.163057]
[1673272597738,0.24957381,17235.0,17234.0,1.888244]
[1673272599059,0.24957381,17235.0,17234.0,1.307996]
[1673272600030,0.24957381,17235.0,17234.0,1.582806]
[1673272600551,0.4872517,17235.0,17234.0,1.307996]
[1673272600816,0.39933548,17235.0,17234.0,0.139]
[1673272601578,0.51053548,17235.0,17233.0,0.830277]
[1673272601837,0.00478548,17235.0,17234.0,0.139]
[1673272602094,0.11608548,17235.0,17233.0,0.830252]
[1673272602356,0.11608548,17235.0,17233.0,0.830256]
[1673272602357,0.01478548,17235.0,17233.0,0.830256]
[1673272602624,0.01478548,17235.0,17234.0,0.4]
[1673272603126,0.01478548,17235.0,17234.0,0.980248]
[1673272603391,0.00378548,17235.0,17234.0,0.980248]
[1673272603900,0.01478548,17235.0,17233.0,0.830262]
[1673272604149,0.01478548,17235.0,17233.0,1.410529]
[1673272604410,1.44746184,17236.0,17234.0,0.4]
[1673272604746,1.44746184,17236.0,17234.0,0.054]
[1673272604920,1.44746184,17236.0,17233.0,1.44525964]
[1673272605189,1.44746184,17236.0,17233.0,1.44524764]
[1673272605684,0.28469926,17236.0,17234.0,0.4]
[1673272605932,0.94989579,17237.0,17235.0,0.580214]
[1673272606199,0.54989579,17237.0,17235.0,0.7609689]
[1673272606722,0.54989579,17237.0,17235.0,0.580214]
[1673272606980,0.94989579,17237.0,17235.0,0.580214]
[1673272607449,0.54989579,17237.0,17235.0,0.580214]
[1673272607704,0.54989579,17237.0,17235.0,1.163428]
[1673272608501,0.8966713,17237.0,17235.0,1.163428]
[1673272608741,1.2966713,17237.0,17235.0,1.163428]
[1673272609036,0.17339926,17236.0,17235.0,0.583214]
[1673272609261,0.43348089,17236.0,17235.0,0.003]
[1673272609806,0.43348089,17236.0,17234.0,1.02453859]
[1673272610280,0.43348089,17236.0,17234.0,1.60478659]
[1673272611286,0.17339926,17236.0,17234.0,1.60478659]
[1673272612569,0.17339926,17236.0,17234.0,1.65878659]
[1673272613070,1.08439765,17237.0,17234.0,1.65878659]
[1673272613317,1.43117316,17237.0,17234.0,1.83954149]
[1673272613570,1.08439765,17237.0,17234.0,1.83954149]
[1673272613819,1.08439765,17237.0,17234.0,1.65878659]
[1673272614326,1.08439765,17237.0,17234.0,1.60478659]
[1673272615357,1.08439765,17237.0,17235.0,0.04328089]
[1673272615612,1.08439765,17237.0,17235.0,1.20368889]
[1673272616105,1.08439765,17237.0,17236.0,0.4]
[1673272616622,0.97229765,17237.0,17236.0,0.4]
[1673272617381,0.43779579,17237.0,17236.0,0.4]
[1673272617637,0.43779579,17237.0,17236.0,0.403]
[1673272617894,0.17771416,17237.0,17236.0,1.023845]
[1673272618148,0.0043149,17237.0,17236.0,1.023845]
[1673272618652,0.0043149,17237.0,17236.0,1.020845]
[1673272619179,0.17771416,17237.0,17236.0,1.023845]
[1673272620721,0.43779579,17237.0,17236.0,1.023845]
[1673272623477,0.61117204,17237.0,17236.0,0.623845]
[1673272623734,0.61117204,17237.0,17236.0,0.583181]
[1673272624491,0.97400804,17237.0,17236.0,0.003]
[1673272624741,1.40747743,17237.0,17236.0,0.003]
[1673272625000,1.1473958,17237.0,17236.0,0.003]
[1673272625250,1.12033215,17237.0,17236.0,0.003]
[1673272625500,1.52033215,17237.0,17236.0,0.003]
[1673272626010,1.17355664,17237.0,17235.0,1.160382]
[1673272626269,0.43778429,17237.0,17236.0,0.003]
[1673272626520,1.12216724,17237.0,17236.0,0.003]
[1673272627031,1.12216724,17237.0,17235.0,1.160382]
[1673272627290,0.43360789,17236.0,17235.0,1.160382]
[1673272629092,0.43360789,17236.0,17235.0,1.16031663]
[1673272629357,0.43360789,17236.0,17235.0,1.16331663]
[1673272629607,0.43360789,17236.0,17235.0,1.16031663]
[1673272633153,0.67128578,17236.0,17234.0,0.4]
[1673272633412,0.67128578,17236.0,17233.0,0.04985757]
[1673272633413,1.48151664,17235.0,17233.0,0.04985757]
[1673272633669,0.79648545,17234.0,17233.0,0.04985757]
[1673272634181,0.79648545,17234.0,17230.0,0.45232315]
[1673272634182,1.72591134,17234.0,17230.0,0.45232315]
[1673272634434,1.72591134,17234.0,17230.0,0.46437303]
[1673272634435,0.1123,17231.0,17230.0,0.46437303]
[1673272634692,0.34997789,17231.0,17230.0,0.46437303]
[1673272634991,0.52343392,17231.0,17230.0,0.06437303]
[1673272635272,0.28575603,17231.0,17230.0,0.06437303]
[1673272635499,0.52343392,17231.0,17230.0,0.01820518]
[1673272635724,0.1123,17231.0,17230.0,0.01820518]
[1673272636022,0.64859203,17231.0,17230.0,0.01820518]
[1673272636299,1.04859203,17231.0,17230.0,0.07920518]
[1673272636615,0.28575603,17231.0,17230.0,0.07920518]
[1673272637107,0.94859203,17231.0,17230.0,0.07920518]
[1673272637616,0.775136,17231.0,17230.0,0.07920518]
[1673272637827,0.1123,17231.0,17230.0,0.07920518]
[1673272638373,0.875136,17231.0,17230.0,0.07920518]
[1673272638639,0.5123,17231.0,17230.0,0.07920518]
[1673272638900,0.1123,17231.0,17230.0,0.07920518]
[1673272641202,0.5123,17231.0,17230.0,0.07920518]
[1673272641696,0.1123,17231.0,17230.0,0.07920518]
[1673272642222,0.5123,17231.0,17230.0,0.07920518]
[1673272643237,0.875136,17231.0,17230.0,0.07920518]
[1673272644551,0.5123,17231.0,17230.0,0.07920518]
[1673272645348,1.66900327,17231.0,17230.0,0.07920518]
[1673272645838,1.49554724,17231.0,17230.0,0.07920518]
[1673272646102,3.20218531,17231.0,17230.0,0.07920518]
[1673272646358,4.20224189,17231.0,17230.0,0.07920518]
[1673272646616,4.37634408,17231.0,17230.0,0.07920518]
[1673272647121,4.37634408,17231.0,17230.0,0.01820518]
[1673272647377,4.37634408,17231.0,17230.0,0.02920518]
[1673272647629,4.10385041,17231.0,17230.0,0.02920518]
[1673272647884,4.27804408,17231.0,17230.0,0.02920518]
[1673272648659,3.6834778,17231.0,17230.0,0.02920518]
[1673272648907,2.84294476,17231.0,17230.0,0.02920518]
[1673272649416,2.67024524,17231.0,17230.0,0.02910239]
[1673272649937,2.68424524,17231.0,17230.0,0.04010239]
[1673272650188,1.0906771,17230.0,17229.0,0.01445432]
[1673272650445,1.5658131,17230.0,17229.0,0.01445432]
[1673272651467,1.6008131,17230.0,17229.0,0.02545432]
[1673272651717,1.2379771,17230.0,17229.0,0.02545432]
[1673272651970,1.1256771,17230.0,17229.0,0.02545432]
[1673272652766,1.0906771,17230.0,17229.0,0.01445432]
[1673272653019,1.1256771,17230.0,17229.0,0.02545432]
[1673272653313,1.0906771,17230.0,17229.0,0.01445432]
[1673272653490,1.1256771,17230.0,17229.0,0.02545432]
[1673272653778,1.0906771,17230.0,17229.0,0.01445432]
[1673272654301,1.4535131,17230.0,17229.0,0.01445432]
[1673272654562,1.1256771,17230.0,17229.0,0.02445432]
[1673272655320,0.7256771,17230.0,17229.0,0.02445432]
[1673272655558,0.6906771,17230.0,17229.0,0.01445432]
[1673272655819,0.7256771,17230.0,17229.0,0.02445432]
[1673272656071,0.6906771,17230.0,17229.0,0.01445432]
[1673272656325,0.7256771,17230.0,17229.0,0.02445432]
[1673272656571,0.6906771,17230.0,17229.0,0.01445432]
[1673272656820,0.7256771,17230.0,17229.0,0.02445432]
[1673272657364,0.6906771,17230.0,17229.0,0.01445432]
[1673272657625,0.7256771,17230.0,17229.0,0.02445432]
[1673272658391,0.6906771,17230.0,17229.0,0.01445432]
[1673272658647,0.7256771,17230.0,17229.0,0.02445432]
[1673272658908,0.6906771,17230.0,17229.0,0.01445432]
[1673272659154,0.6906771,17230.0,17229.0,0.02445432]
[1673272659414,0.7256771,17230.0,17229.0,0.02445432]
[1673272660740,0.035,17230.0,17229.0,0.64875649]
[1673272661066,0.035,17230.0,17229.0,0.92366449]
[1673272661248,0.035,17230.0,17229.0,1.50408049]
[1673272662029,0.93483965,17233.0,17229.0,1.49408049]
[1673272662323,0.93483965,17233.0,17230.0,0.4]
[1673272662532,0.53483965,17233.0,17230.0,0.5807549]
[1673272662778,0.53483965,17233.0,17230.0,1.1611239]
[1673272663028,0.53483965,17233.0,17230.0,1.7415069]
[1673272663526,0.56983965,17233.0,17230.0,1.560752]
[1673272663778,0.53483965,17233.0,17230.0,1.560752]
[1673272664031,0.56983965,17233.0,17230.0,1.571752]
[1673272665066,0.53483965,17233.0,17230.0,1.560752]
[1673272665342,0.56983965,17233.0,17230.0,1.571752]
[1673272665575,0.53483965,17233.0,17230.0,2.141135]
[1673272665819,0.56983965,17233.0,17230.0,2.152135]
[1673272666058,0.56983965,17233.0,17231.0,0.03601096]
[1673272666300,0.56983965,17233.0,17232.0,0.580315]
[1673272666540,0.56983965,17233.0,17232.0,0.980315]
[1673272667044,0.53483965,17233.0,17232.0,0.980315]
[1673272667293,0.56983965,17233.0,17232.0,0.980315]
[1673272668308,0.035,17233.0,17232.0,1.56063]
[1673272668557,1.01310056,17235.0,17232.0,1.56063]
[1673272668808,0.035,17233.0,17232.0,1.7523849]
[1673272669072,0.035,17233.0,17232.0,1.57163]
[1673272669598,0.17269952,17235.0,17233.0,0.03949475]
[1673272669867,0.035,17235.0,17234.0,0.674821]
[1673272670107,1.084936,17237.0,17234.0,1.255069]
[1673272670363,1.084936,17237.0,17234.0,1.1610029]
[1673272670620,0.82475196,17237.0,17234.0,1.7412509]
[1673272670871,0.035,17235.0,17234.0,1.7412509]
[1673272671121,0.035,17235.0,17234.0,1.560496]
[1673272671378,0.035,17235.0,17234.0,2.41555]
[1673272671630,0.035,17235.0,17234.0,2.42405]
[1673272671888,0.82475196,17237.0,17235.0,0.4]
[1673272672145,0.65205244,17237.0,17236.0,0.580181]
[1673272672952,0.65205244,17237.0,17235.0,0.980192]
[1673272673190,8.285e-05,17236.0,17235.0,1.570388]
[1673272673462,8.285e-05,17236.0,17235.0,1.568888]
[1673272673732,8.285e-05,17236.0,17235.0,1.843676]
[1673272675038,8.285e-05,17236.0,17235.0,1.568888]
[1673272675244,0.03508285,17236.0,17235.0,1.573888]
[1673272675494,0.03508285,17236.0,17235.0,1.848678]
[1673272675743,0.03508285,17236.0,17235.0,2.428892]
[1673272675998,0.03508285,17236.0,17235.0,2.4660823]
[1673272678037,0.03500067,17236.0,17235.0,2.4660823]
[1673272678821,0.03500067,17236.0,17235.0,2.46662071]
[1673272684882,0.03500067,17236.0,17235.0,2.87822071]
[1673272685882,6.7e-07,17236.0,17235.0,2.87322071]
[1673272686388,6.7e-07,17236.0,17235.0,2.57322071]
[1673272686644,0.00100067,17236.0,17235.0,2.62322071]
[1673272686895,0.00100067,17236.0,17235.0,2.61878945]
[1673272687646,0.00100067,17236.0,17235.0,2.91878945]
[1673272687892,0.00100067,17236.0,17235.0,2.61878945]
[1673272690722,0.00100067,17236.0,17235.0,2.91878945]
[1673272690979,0.00100067,17236.0,17235.0,2.61878945]
[1673272698429,0.00100067,17236.0,17235.0,2.84368945]
[1673272702025,0.00100067,17236.0,17235.0,2.84498345]
[1673272702275,0.00100067,17236.0,17235.0,2.84444504]
[1673272706605,0.00100067,17236.0,17235.0,2.67614504]
[1673272709154,0.00100067,17236.0,17235.0,2.84979223]
[1673272710208,0.23867856,17236.0,17235.0,2.84979223]
[1673272710485,0.00100067,17236.0,17235.0,2.50794504]
[1673272711512,0.00100067,17236.0,17235.0,1.92775304]
[1673272711513,0.17370019,17236.0,17235.0,1.92775304]
[1673272712266,0.00100067,17236.0,17235.0,1.92775304]
[1673272712518,0.00100067,17236.0,17235.0,1.65296304]
[1673272712776,0.17370019,17236.0,17235.0,1.65296304]
[1673272713280,0.00100067,17236.0,17235.0,1.92775304]
[1673272713787,0.17370019,17236.0,17235.0,1.92835404]
[1673272714552,0.17370019,17236.0,17235.0,1.65356404]
[1673272715044,0.17370019,17236.0,17235.0,1.65296304]
[1673272715544,0.17370019,17236.0,17235.0,1.92775304]
[1673272716048,0.17370019,17236.0,17235.0,1.92835404]
[1673272716551,0.00100067,17236.0,17235.0,1.92835404]
[1673272716812,0.00100067,17236.0,17235.0,2.50796704]
[1673272717073,0.00100067,17236.0,17235.0,2.50856804]
[1673272717325,0.17370019,17236.0,17235.0,2.50856804]
[1673272717840,0.17370019,17236.0,17235.0,1.92775304]
[1673272718600,0.00100067,17236.0,17235.0,2.50796704]
[1673272720931,0.17370019,17236.0,17235.0,1.92775304]
[1673272721179,0.17370019,17236.0,17235.0,1.65296304]
[1673272721677,0.17370019,17236.0,17235.0,1.92775304]
[1673272722679,0.00100067,17236.0,17235.0,1.92775304]
[1673272722927,0.00100067,17236.0,17235.0,2.50796704]
[1673272723187,0.00100067,17236.0,17235.0,1.92775304]
[1673272724218,0.17370019,17236.0,17235.0,1.92775304]
[1673272725216,0.00100067,17236.0,17235.0,1.92775304]
[1673272725471,0.17370019,17236.0,17235.0,1.65296304]
[1673272726484,0.17370019,17236.0,17235.0,1.81166304]
[1673272726738,0.17370019,17236.0,17235.0,2.08645304]
[1673272729534,0.00100067,17236.0,17235.0,2.08645304]
[1673272730002,0.17370019,17236.0,17235.0,2.08645304]
[1673272730473,0.00100067,17236.0,17235.0,2.08645304]
[1673272730716,0.17370019,17236.0,17235.0,1.81166304]
[1673272731217,0.17370019,17236.0,17235.0,2.08645304]
[1673272732484,0.17370019,17236.0,17235.0,1.81166304]
[1673272733482,0.17370019,17236.0,17235.0,2.08645304]
[1673272734231,0.00100067,17236.0,17235.0,2.08645304]
[1673272736314,0.17370019,17236.0,17235.0,2.08645304]
[1673272736548,0.00100067,17236.0,17235.0,2.08645304]
[1673272736811,0.00100067,17236.0,17235.0,2.66666704]
[1673272740626,0.00100067,17236.0,17235.0,2.84031423]
[1673272743017,0.00100067,17236.0,17235.0,2.66666704]
[1673272743538,0.00100067,17236.0,17235.0,2.66726804]
[1673272745592,0.17370019,17236.0,17235.0,2.08645304]
[1673272745854,0.17370019,17236.0,17235.0,1.81166304]
[1673272746670,0.17370019,17236.0,17235.0,1.91925304]
[1673272746912,0.17370019,17236.0,17235.0,1.64446304]
[1673272749031,0.43388423,17236.0,17235.0,1.64446304]
[1673272749310,0.17370019,17236.0,17235.0,1.64446304]
[1673272750089,0.43388423,17236.0,17235.0,1.2488943]
[1673272750341,0.60809677,17236.0,17235.0,1.2488943]
[1673272750875,0.60809677,17236.0,17235.0,0.631508]
[1673272751127,1.10900024,17236.0,17235.0,0.631508]
[1673272751679,0.7815528,17236.0,17235.0,0.051294]
[1673272751946,1.04171164,17236.0,17235.0,0.051294]
[1673272752201,0.6080721,17236.0,17235.0,0.051294]
[1673272752452,1.04171217,17236.0,17235.0,0.051294]
[1673272752930,0.6080721,17236.0,17235.0,0.051294]
[1673272753195,0.7815528,17236.0,17235.0,0.051294]
[1673272753695,1.10874339,17236.0,17235.0,0.051294]
[1673272753948,1.50874339,17236.0,17235.0,0.051294]
[1673272754205,1.12466733,17236.0,17235.0,0.05120981]
[1673272754476,1.70484833,17236.0,17235.0,0.05120981]
[1673272754731,1.52466733,17236.0,17235.0,0.05120981]
[1673272755763,2.10484833,17236.0,17235.0,0.05120981]
[1673272755998,2.45151248,17236.0,17235.0,0.05120981]
[1673272756253,1.87133148,17236.0,17235.0,0.05120981]
[1673272757530,1.47133148,17236.0,17235.0,0.05120981]
[1673272757891,0.97050449,17236.0,17235.0,0.05120981]
[1673272758335,0.60766849,17236.0,17235.0,0.05120981]
[1673272760136,0.43432484,17236.0,17235.0,0.05120981]
[1673272761490,0.78098899,17236.0,17235.0,0.05120981]
[1673272762000,0.60766849,17236.0,17235.0,0.05120981]
[1673272763519,0.97050449,17236.0,17235.0,0.05120981]